lending/lending_fUSD_20250114
["ID","MTS","AMOUNT","RATE_DAILY","PERIOD"]
[348923438,1736873467542,-500.0,0.0001243,2]
[348923439,1736873467551,-500.0,0.0001243,2]
[348923440,1736873467561,-544.55,0.0001243,2]
[348923441,1736873467570,-601.16,0.0001243,2]
[348923442,1736873467580,-587.16,0.0001243,2]
[348923443,1736873467589,-500.0,0.0001243,2]
[348923444,1736873467599,-500.0,0.0001243,2]
[348923445,1736873467608,-500.0,0.0001243,2]
[348923446,1736873467618,-607.27,0.0001243,2]
[348923447,1736873467627,-500.0,0.0001243,2]
[348923448,1736873467638,-500.0,0.0001243,2]
[348923449,1736873467648,-597.63,0.0001243,2]
[348923450,1736873467657,-500.0,0.0001243,2]
[348923451,1736873467667,-500.0,0.0001243,2]
[348923452,1736873467677,-523.21,0.0001243,2]
[348923453,1736873467687,-500.0,0.0001243,2]
[348923454,1736873467699,-500.0,0.0001243,2]
[348923455,1736873467710,-500.0,0.0001243,2]
[348923456,1736873467720,-500.0,0.0001243,2]
[348923457,1736873467729,-500.0,0.0001243,2]
[348923458,1736873467740,-500.0,0.0001243,2]
[348923459,1736873467749,-500.0,0.0001243,2]
[348923460,1736873467759,-500.0,0.0001243,2]
[348923461,1736873467769,-500.0,0.0001243,2]
[348923462,1736873467779,-500.0,0.0001243,2]
[348923463,1736873467789,-500.0,0.0001243,2]
[348923464,1736873467798,-1448.05,0.0001243,2]
[348923465,1736873467808,-500.0,0.0001243,2]
[348923466,1736873467818,-4489.17,0.0001243,2]
[348923467,1736873467827,-500.0,0.0001243,2]
[348923468,1736873467837,-930.31,0.0001243,2]
[348923469,1736873467848,-520.31,0.0001243,2]
[348923470,1736873467857,-500.0,0.0001243,2]
[348923471,1736873467867,-1622.01,0.0001243,2]
[348923472,1736873467876,-503.83,0.0001243,2]
[348923473,1736873467887,-532.34,0.0001243,2]
[348923474,1736873467897,-1251.7,0.0001243,2]
[348923475,1736873467906,-1286.21,0.0001243,2]
[348923476,1736873467916,-500.0,0.0001243,2]
[348923477,1736873467925,-500.0,0.0001243,2]
[348923478,1736873467934,-1400.82,0.0001243,2]
[348923479,1736873467944,-686.53,0.0001243,2]
[348923480,1736873467954,-500.0,0.0001243,2]
[348923481,1736873467963,-500.0,0.0001243,2]
[348923482,1736873467973,-882.72,0.0001243,2]
[348923483,1736873467982,-2270.99,0.0001243,2]
[348923484,1736873467992,-600.97,0.0001243,2]
[348923485,1736873468002,-999.28,0.0001243,2]
[348923486,1736873468011,-720.98,0.0001243,2]
[348923487,1736873468023,-500.0,0.0001243,2]
[348923488,1736873468032,-500.0,0.0001243,2]
[348923489,1736873468043,-500.0,0.0001243,2]
[348923490,1736873468053,-500.0,0.0001243,2]
[348923491,1736873468062,-500.0,0.0001243,2]
[348923492,1736873468072,-500.0,0.0001243,2]
[348923493,1736873468082,-840.54,0.0001243,2]
[348923494,1736873468092,-500.0,0.0001243,2]
[348923495,1736873468101,-500.0,0.0001243,2]
[348923496,1736873468111,-1127.29,0.0001243,2]
[348923497,1736873468120,-525.447495,0.0001243,2]
[348923498,1736873468129,-489.515402,0.0001243,2]
[348923499,1736873468139,-845.26,0.0001243,2]
[348923500,1736873468150,-2316.4,0.0001243,2]
[348923501,1736873468160,-1121.41,0.00012431,2]
[348923502,1736873468170,-759.75,0.00012431,2]
[348923503,1736873468180,-1262.08,0.00012431,2]
[348923504,1736873468190,-896.79,0.00012431,2]
[348923505,1736873468200,-2286.33,0.00012431,2]
[348923506,1736873468209,-1099.72,0.00012431,2]
[348923507,1736873468219,-500.0,0.00012431,2]
[348923508,1736873468229,-2044.8,0.00012431,2]
[348923509,1736873468239,-777.29,0.00012431,2]
[348923510,1736873468248,-797.41,0.00012431,2]
[348923511,1736873468258,-2913.28,0.00012431,2]
[348923512,1736873468268,-603.47,0.00012431,2]
[348923513,1736873468277,-3734.94,0.00012431,2]
[348923514,1736873468287,-1162.12,0.00012431,2]
[348923515,1736873468297,-500.0,0.00012431,2]
[348923516,1736873468306,-1874.38,0.00012431,2]
[348923517,1736873468315,-1069.78,0.00012431,2]
[348923518,1736873468324,-700.1,0.00012431,2]
[348923519,1736873468334,-644.96,0.00012431,2]
[348923520,1736873468343,-1068.25,0.00012432,2]
[348923521,1736873468353,-500.0,0.00012432,2]
[348923522,1736873468363,-2874.36,0.00012432,2]
[348923523,1736873468373,-500.0,0.00012432,2]
[348923524,1736873468386,-717.03,0.00012432,2]
[348923525,1736873468395,-864.55,0.00012432,2]
[348923526,1736873468405,-983.39,0.00012432,2]
[348923527,1736873468415,-574.35,0.00012439,2]
[348923528,1736873468424,-500.0,0.0001244,2]
[348923529,1736873468433,-786.31,0.0001244,2]
[348923530,1736873468443,-7433.76,0.0001244,2]
[348923531,1736873468453,-896.11,0.0001244,2]
[348923532,1736873468463,-1140.47,0.0001244,2]
[348923533,1736873468473,-1229.69,0.0001244,2]
[348923534,1736873468483,-832.87,0.0001244,2]
[348923535,1736873468493,-2011.66,0.0001244,2]
[348923536,1736873468503,-1370.26,0.0001244,2]
[348923537,1736873468513,-2128.17,0.0001244,2]
[348923538,1736873468522,-2417.47,0.0001244,2]
[348923539,1736873468531,-1036.22,0.0001244,2]
[348923540,1736873468541,-3099.65,0.0001244,2]
[348923541,1736873468552,-608.09,0.0001244,2]
[348923542,1736873468561,-757.14,0.0001244,2]
[348923543,1736873468571,-154.63359363,0.0001255,2]
[348923544,1736873468580,-963.68,0.00012559,2]
[348923545,1736873468589,-500.0,0.00012596,2]
[348923546,1736873468599,-1275.1,0.00012624,2]
[348923547,1736873468609,-1069.16,0.00012629,2]
[348923548,1736873468619,-679.33,0.00012629,2]
[348923549,1736873468628,-500.0,0.00012629,2]
[348923550,1736873468642,-597.12,0.00012629,2]
[348923551,1736873468651,-926.54,0.00012629,2]
[348923552,1736873468661,-500.0,0.00012629,2]
[348923553,1736873468670,-970.9,0.00012629,2]
[348923554,1736873468679,-717.4,0.00012629,2]
[348923555,1736873468689,-1548.22,0.00012629,2]
[348923556,1736873468703,-9130.03,0.00012629,2]
[348923557,1736873468712,-775.0,0.00012703,2]
[348923558,1736873468723,-554.27,0.00012703,2]
[348923559,1736873468733,-1298.27,0.00012703,2]
[348923560,1736873468744,-1067.04,0.00012703,2]
[348923561,1736873468754,-2046.78,0.00012703,2]
[348923562,1736873468763,-1253.37,0.00012703,2]
[348923563,1736873468777,-831.64,0.00012703,2]
[348923564,1736873468787,-2049.18,0.00012703,2]
[348923565,1736873468798,-721.04,0.00012703,2]
[348923566,1736873468808,-638.19,0.00012703,2]
[348923567,1736873468818,-551.69,0.00012703,2]
[348923568,1736873468828,-526.93,0.00012703,2]
[348923569,1736873468837,-2294.02,0.00012703,2]
[348923570,1736873468846,-737.34,0.00012703,2]
[348923571,1736873468856,-931.12,0.00012703,2]
[348923572,1736873468866,-500.0,0.00012703,2]
[348923573,1736873468875,-1061.62,0.00012703,2]
[348923574,1736873468887,-682.17,0.00012704,2]
[348923575,1736873468897,-500.0,0.00012704,2]
[348923576,1736873468906,-534.01,0.00012704,2]
[348923577,1736873468917,-500.0,0.00012704,2]
[348923578,1736873468927,-500.0,0.00012704,2]
[348923579,1736873468936,-500.0,0.00012704,2]
[348923580,1736873468946,-500.0,0.00012704,2]
[348923581,1736873468955,-500.0,0.00012704,2]
[348923582,1736873468965,-500.0,0.00012704,2]
[348923583,1736873468974,-500.0,0.00012704,2]
[348923584,1736873468984,-577.79,0.00012704,2]
[348923585,1736873468993,-500.0,0.00012704,2]
[348923586,1736873469003,-532.22,0.00012704,2]
[348923587,1736873469012,-500.0,0.00012704,2]
[348923588,1736873469024,-500.0,0.00012704,2]
[348923589,1736873469034,-500.0,0.00012704,2]
[348923590,1736873469043,-500.0,0.00012704,2]
[348923591,1736873469053,-548.45,0.00012704,2]
[348923592,1736873469063,-500.0,0.00012704,2]
[348923593,1736873469073,-500.0,0.00012704,2]
[348923594,1736873469083,-516.55,0.00012704,2]
[348923595,1736873469092,-500.0,0.00012704,2]
[348923596,1736873469102,-500.0,0.00012704,2]
[348923597,1736873469112,-500.0,0.00012704,2]
[348923598,1736873469122,-500.0,0.00012704,2]
[348923599,1736873469133,-544.55,0.00012704,2]
[348923600,1736873469144,-601.16,0.00012704,2]
[348923601,1736873469154,-587.16,0.00012704,2]
[348923602,1736873469163,-500.0,0.00012704,2]
[348923603,1736873469173,-500.0,0.00012704,2]
[348923604,1736873469183,-500.0,0.00012704,2]
[348923605,1736873469192,-607.27,0.00012704,2]
[348923606,1736873469201,-500.0,0.00012704,2]
[348923607,1736873469211,-500.0,0.00012704,2]
[348923608,1736873469221,-597.63,0.00012704,2]
[348923609,1736873469230,-500.0,0.00012704,2]
[348923610,1736873469240,-500.0,0.00012704,2]
[348923611,1736873469251,-523.21,0.00012704,2]
[348923612,1736873469261,-500.0,0.00012704,2]
[348923613,1736873469271,-234.61738102,0.00012704,2]
[348923614,1736873469281,-500.0,0.00012704,2]
[348923615,1736873469291,-500.0,0.00012704,2]
[348923616,1736873469302,-500.0,0.00012704,2]
[348923617,1736873469312,-500.0,0.00012704,2]
[348923618,1736873469323,-500.0,0.00012704,2]
[348923619,1736873469333,-500.0,0.00012704,2]
[348923620,1736873469343,-500.0,0.00012704,2]
[348923621,1736873469352,-500.0,0.00012704,2]
[348923622,1736873469362,-500.0,0.00012704,2]
[348923623,1736873469372,-1448.05,0.00012704,2]
[348923624,1736873469383,-500.0,0.00012704,2]
[348923625,1736873469393,-4489.17,0.00012704,2]
[348923626,1736873469402,-500.0,0.00012704,2]
[348923627,1736873469411,-930.31,0.00012704,2]
[348923628,1736873469421,-520.31,0.00012704,2]
[348923629,1736873469430,-500.0,0.00012704,2]
[348923630,1736873469439,-1622.01,0.00012704,2]
[348923631,1736873469449,-503.83,0.00012704,2]
[348923632,1736873469459,-532.34,0.00012704,2]
[348923633,1736873469468,-1251.7,0.00012704,2]
[348923634,1736873469478,-1286.21,0.00012704,2]
[348923635,1736873469487,-500.0,0.00012704,2]
[348923636,1736873469497,-500.0,0.00012704,2]
[348923637,1736873469506,-1400.82,0.00012704,2]
[348923638,1736873469516,-686.53,0.00012704,2]
[348923639,1736873469527,-228.4,0.00012704,2]
[348923640,1736873469536,-500.0,0.00012704,2]
[348923641,1736873469546,-882.72,0.00012704,2]
[348923642,1736873469556,-2270.99,0.00012704,2]
[348923643,1736873469566,-600.97,0.00012704,2]
[348923644,1736873469575,-999.28,0.00012704,2]
[348923645,1736873469585,-720.98,0.00012704,2]
[348923646,1736873469595,-587.46208133,0.00012704,2]
[348923647,1736873469604,-500.0,0.00012704,2]
[348923648,1736873469614,-500.0,0.00012704,2]
[348923649,1736873469770,-435.03540331,0.00012704,2]
[348923650,1736873469799,-500.0,0.00012704,2]
[348923651,1736873469809,-500.0,0.00012704,2]
[348923652,1736873469820,-840.54,0.00012704,2]
[348923653,1736873469830,-500.0,0.00012704,2]
[348923654,1736873469840,-500.0,0.00012704,2]
[348923655,1736873469850,-1127.29,0.00012704,2]
[348923656,1736873469860,-525.447495,0.00012704,2]
[348923657,1736873469869,-489.515402,0.00012704,2]
[348923658,1736873469879,-845.26,0.00012704,2]
[348923659,1736873469891,-2316.4,0.00012704,2]
[348923660,1736873469901,-1121.41,0.00012705,2]
[348923661,1736873469911,-759.75,0.00012705,2]
[348923662,1736873469922,-1262.08,0.00012705,2]
[348923663,1736873469932,-896.79,0.00012705,2]
[348923664,1736873469942,-2286.33,0.00012705,2]
[348923665,1736873469952,-1099.72,0.00012705,2]
[348923666,1736873469961,-500.0,0.00012705,2]
[348923667,1736873469971,-2044.8,0.00012705,2]
[348923668,1736873469981,-777.29,0.00012705,2]
[348923669,1736873469990,-797.41,0.00012705,2]
[348923670,1736873470000,-2913.28,0.00012705,2]
[348923671,1736873470011,-603.47,0.00012705,2]
[348923672,1736873470023,-3734.94,0.00012705,2]
[348923673,1736873470034,-1162.12,0.00012705,2]
[348923674,1736873470045,-500.0,0.00012705,2]
[348923675,1736873470055,-1874.38,0.00012705,2]
[348923676,1736873470065,-1069.78,0.00012705,2]
[348923677,1736873470076,-700.1,0.00012705,2]
[348923678,1736873470086,-644.96,0.00012705,2]
[348923679,1736873470095,-1068.25,0.00012706,2]
[348923680,1736873470106,-500.0,0.00012706,2]
[348923681,1736873470116,-500.0,0.00012706,2]
[348923682,1736873470125,-2874.36,0.00012706,2]
[348923683,1736873470136,-500.0,0.00012706,2]
[348923684,1736873470146,-717.03,0.00012706,2]
[348923685,1736873470156,-864.55,0.00012706,2]
[348923686,1736873470166,-983.39,0.00012706,2]
[348923687,1736873470177,-574.35,0.00012713,2]
[348923688,1736873470186,-500.0,0.00012714,2]
[348923689,1736873470195,-628.05,0.00012714,2]
[348923690,1736873470204,-786.31,0.00012714,2]
[348923691,1736873470214,-7433.76,0.00012714,2]
[348923692,1736873470224,-896.11,0.00012714,2]
[348923693,1736873470234,-1140.47,0.00012714,2]
[348923694,1736873470244,-1229.69,0.00012714,2]
[348923695,1736873470254,-832.87,0.00012714,2]
[348923696,1736873470264,-2011.66,0.00012714,2]
[348923697,1736873470277,-1370.26,0.00012714,2]
[348923698,1736873470292,-2128.17,0.00012714,2]
[348923699,1736873470302,-2417.47,0.00012714,2]
[348923700,1736873470312,-1036.22,0.00012714,2]
[348923701,1736873470321,-3099.65,0.00012714,2]
[348923702,1736873470330,-608.09,0.00012714,2]
[348923703,1736873470340,-757.14,0.00012714,2]
[348923704,1736873470350,-1017.88764744,0.00012797,2]
[348923705,1736873470360,-437.26,0.00012838,2]
[348923706,1736873470370,-437.26,0.00012838,2]
[348923707,1736873470380,-437.26,0.00012838,2]
[348923708,1736873470392,-437.26,0.00012838,2]
[348923709,1736873470402,-437.26,0.00012838,2]
[348923710,1736873470411,-2795.987,0.00012879,2]
[348923711,1736873470421,-167.325,0.00012879,2]
[348923712,1736873470431,-500.0,0.00012879,2]
[348923713,1736873470440,-500.0,0.00012879,2]
[348923714,1736873470450,-500.0,0.00012879,2]
[348923715,1736873470459,-500.0,0.00012879,2]
[348923716,1736873470470,-411437.36840542,0.0001288,2]
[348923717,1736873470481,-1069.16,0.00012903,2]
[348923718,1736873470491,-679.33,0.00012903,2]
[348923719,1736873470500,-500.0,0.00012903,2]
[348923720,1736873470511,-597.12,0.00012903,2]
[348923721,1736873470521,-926.54,0.00012903,2]
[348923722,1736873470530,-500.0,0.00012903,2]
[348923723,1736873470539,-970.9,0.00012903,2]
[348923724,1736873470549,-717.4,0.00012903,2]
[348923725,1736873470559,-1548.22,0.00012903,2]
[348923726,1736873470569,-9130.03,0.00012903,2]
[348923727,1736873470579,-775.0,0.00012977,2]
[348923728,1736873470589,-554.27,0.00012977,2]
[348923729,1736873470599,-1298.27,0.00012977,2]
[348923730,1736873470608,-1067.04,0.00012977,2]
[348923731,1736873470618,-2046.78,0.00012977,2]
[348923732,1736873470629,-1253.37,0.00012977,2]
[348923733,1736873470639,-831.64,0.00012977,2]
[348923734,1736873470648,-2049.18,0.00012977,2]
[348923735,1736873470658,-721.04,0.00012977,2]
[348923736,1736873470668,-638.19,0.00012977,2]
[348923737,1736873470677,-551.69,0.00012977,2]
[348923738,1736873470686,-526.93,0.00012977,2]
[348923739,1736873470697,-2294.02,0.00012977,2]
[348923740,1736873470709,-737.34,0.00012977,2]
[348923741,1736873470719,-931.12,0.00012977,2]
[348923742,1736873470729,-500.0,0.00012977,2]
[348923743,1736873470740,-1061.62,0.00012977,2]
[348923744,1736873470750,-682.17,0.00012978,2]
[348923745,1736873470759,-500.0,0.00012978,2]
[348923746,1736873470769,-534.01,0.00012978,2]
[348923747,1736873470778,-500.0,0.00012978,2]
[348923748,1736873470788,-500.0,0.00012978,2]
[348923749,1736873470797,-500.0,0.00012978,2]
[348923750,1736873470807,-500.0,0.00012978,2]
[348923751,1736873470816,-500.0,0.00012978,2]
[348923752,1736873470826,-500.0,0.00012978,2]
[348923753,1736873470836,-500.0,0.00012978,2]
[348923754,1736873470846,-577.79,0.00012978,2]
[348923755,1736873470856,-500.0,0.00012978,2]
[348923756,1736873470866,-532.22,0.00012978,2]
[348923757,1736873470875,-445.25263531,0.00012978,2]
[348923758,1736873470887,-500.0,0.00012978,2]
[348923759,1736873470897,-500.0,0.00012978,2]
[348923760,1736873470907,-500.0,0.00012978,2]
[348923761,1736873470918,-548.45,0.00012978,2]
[348923762,1736873470928,-500.0,0.00012978,2]
[348923763,1736873470938,-500.0,0.00012978,2]
[348923764,1736873470948,-516.55,0.00012978,2]
[348923765,1736873470958,-500.0,0.00012978,2]
[348923766,1736873470968,-500.0,0.00012978,2]
[348923767,1736873470978,-500.0,0.00012978,2]
[348923768,1736873470988,-500.0,0.00012978,2]
[348923769,1736873470997,-544.55,0.00012978,2]
[348923770,1736873471007,-601.16,0.00012978,2]
[348923771,1736873471018,-587.16,0.00012978,2]
[348923772,1736873471029,-500.0,0.00012978,2]
[348923773,1736873471039,-500.0,0.00012978,2]
[348923774,1736873471049,-500.0,0.00012978,2]
[348923775,1736873471059,-607.27,0.00012978,2]
[348923776,1736873471068,-500.0,0.00012978,2]
[348923777,1736873471078,-500.0,0.00012978,2]
[348923778,1736873471088,-597.63,0.00012978,2]
[348923779,1736873471098,-500.0,0.00012978,2]
[348923780,1736873471108,-500.0,0.00012978,2]
[348923781,1736873471118,-523.21,0.00012978,2]
[348923782,1736873471127,-500.0,0.00012978,2]
[348923783,1736873471138,-500.0,0.00012978,2]
[348923784,1736873471148,-500.0,0.00012978,2]
[348923785,1736873471158,-500.0,0.00012978,2]
[348923786,1736873471167,-500.0,0.00012978,2]
[348923787,1736873471176,-500.0,0.00012978,2]
[348923788,1736873471186,-500.0,0.00012978,2]
[348923789,1736873471195,-500.0,0.00012978,2]
[348923790,1736873471205,-500.0,0.00012978,2]
[348923791,1736873471215,-284.81527163,0.00012978,2]
[348923792,1736873471225,-1448.05,0.00012978,2]
[348923793,1736873471235,-500.0,0.00012978,2]
[348923794,1736873471244,-4489.17,0.00012978,2]
[348923795,1736873471254,-500.0,0.00012978,2]
[348923796,1736873471264,-930.31,0.00012978,2]
[348923797,1736873471273,-520.31,0.00012978,2]
[348923798,1736873471282,-500.0,0.00012978,2]
[348923799,1736873471292,-1622.01,0.00012978,2]
[348923800,1736873471302,-503.83,0.00012978,2]
[348923801,1736873471311,-532.34,0.00012978,2]
[348923802,1736873471321,-1251.7,0.00012978,2]
[348923803,1736873471331,-1286.21,0.00012978,2]
[348923804,1736873471341,-500.0,0.00012978,2]
[348923805,1736873471350,-500.0,0.00012978,2]
[348923806,1736873471358,-1400.82,0.00012978,2]
[348923807,1736873471367,-686.53,0.00012978,2]
[348923808,1736873471376,-500.0,0.00012978,2]
[348923809,1736873471387,-882.72,0.00012978,2]
[348923810,1736873471396,-2270.99,0.00012978,2]
[348923811,1736873471406,-600.97,0.00012978,2]
[348923812,1736873471415,-999.28,0.00012978,2]
[348923813,1736873471425,-720.98,0.00012978,2]
[348923814,1736873471434,-500.0,0.00012978,2]
[348923815,1736873471444,-500.0,0.00012978,2]
[348923816,1736873471454,-500.0,0.00012978,2]
[348923817,1736873471463,-500.0,0.00012978,2]
[348923818,1736873471474,-840.54,0.00012978,2]
[348923819,1736873471485,-500.0,0.00012978,2]
[348923820,1736873471495,-500.0,0.00012978,2]
[348923821,1736873471505,-1127.29,0.00012978,2]
[348923822,1736873471514,-525.447495,0.00012978,2]
[348923823,1736873471523,-489.515402,0.00012978,2]
[348923824,1736873471533,-845.26,0.00012978,2]
[348923825,1736873471543,-2316.4,0.00012978,2]
[348923826,1736873471553,-1016.27,0.00012979,2]
[348923827,1736873471563,-1121.41,0.00012979,2]
[348923828,1736873471573,-759.75,0.00012979,2]
[348923829,1736873471583,-1262.08,0.00012979,2]
[348923830,1736873471592,-896.79,0.00012979,2]
[348923831,1736873471602,-2286.33,0.00012979,2]
[348923832,1736873471611,-1099.72,0.00012979,2]
[348923833,1736873471621,-500.0,0.00012979,2]
[348923834,1736873471631,-2044.8,0.00012979,2]
[348923835,1736873471643,-777.29,0.00012979,2]
[348923836,1736873471653,-797.41,0.00012979,2]
[348923837,1736873471662,-2913.28,0.00012979,2]
[348923838,1736873471671,-605.628072,0.00012979,2]
[348923839,1736873471681,-605.628072,0.00012979,2]
[348923840,1736873471691,-151.0,0.00012979,2]
[348923841,1736873471703,-151.0,0.00012979,2]
[348923842,1736873471712,-603.47,0.00012979,2]
[348923843,1736873471722,-3734.94,0.00012979,2]
[348923844,1736873471732,-151.0,0.00012979,2]
[348923845,1736873471742,-193.881747,0.00012979,2]
[348923846,1736873471751,-819.474383,0.00012979,2]
[348923847,1736873471761,-193.881747,0.00012979,2]
[348923848,1736873471772,-819.474383,0.00012979,2]
[348923849,1736873471781,-151.0,0.00012979,2]
[348923850,1736873471791,-1162.12,0.00012979,2]
[348923851,1736873471801,-500.0,0.00012979,2]
[348923852,1736873471810,-151.0,0.00012979,2]
[348923853,1736873471821,-151.0,0.00012979,2]
[348923854,1736873471830,-1874.38,0.00012979,2]
[348923855,1736873471839,-151.0,0.00012979,2]
[348923856,1736873471848,-176.171221,0.00012979,2]
[348923857,1736873471858,-555.801489,0.00012979,2]
[348923858,1736873471867,-555.801489,0.00012979,2]
[348923859,1736873471877,-151.0,0.00012979,2]
[348923860,1736873471888,-1069.78,0.00012979,2]
[348923861,1736873471897,-700.1,0.00012979,2]
[348923862,1736873471907,-151.0,0.00012979,2]
[348923863,1736873471917,-644.96,0.00012979,2]
[348923864,1736873471926,-1068.25,0.0001298,2]
[348923865,1736873471935,-500.0,0.0001298,2]
[348923866,1736873471945,-2874.36,0.0001298,2]
[348923867,1736873471955,-500.0,0.0001298,2]
[348923868,1736873471965,-717.03,0.0001298,2]
[348923869,1736873471974,-864.55,0.0001298,2]
[348923870,1736873471984,-983.39,0.0001298,2]
[348923871,1736873471993,-574.35,0.00012987,2]
[348923872,1736873472002,-203.20642824,0.00012988,2]
[348923873,1736873472012,-628.05,0.00012988,2]
[348923874,1736873472023,-786.31,0.00012988,2]
[348923875,1736873472034,-7433.76,0.00012988,2]
[348923876,1736873472044,-896.11,0.00012988,2]
[348923877,1736873472054,-1140.47,0.00012988,2]
[348923878,1736873472063,-1229.69,0.00012988,2]
[348923879,1736873472073,-832.87,0.00012988,2]
[348923880,1736873472084,-2011.66,0.00012988,2]
[348923881,1736873472093,-1370.26,0.00012988,2]
[348923882,1736873472103,-2128.17,0.00012988,2]
[348923883,1736873472113,-2417.47,0.00012988,2]
[348923884,1736873472123,-1036.22,0.00012988,2]
[348923885,1736873472132,-3099.65,0.00012988,2]
[348923886,1736873472142,-608.09,0.00012988,2]
[348923887,1736873472152,-757.14,0.00012988,2]
[348923888,1736873472162,-154.83661892,0.0001299,2]
[348923889,1736873472171,-600.0,0.00013,2]
[348923890,1736873472180,-151.0,0.0001315,2]
[348923891,1736873472190,-1023.854078,0.0001315,2]
[348923892,1736873472199,-1023.854078,0.0001315,2]
[348923893,1736873472209,-708.784725,0.0001315,2]
[348923894,1736873472219,-708.784725,0.0001315,2]
[348923895,1736873472228,-10000.0,0.0001315,2]
[348923896,1736873472238,-10000.0,0.0001315,2]
[348923897,1736873472248,-10000.0,0.0001315,2]
[348923898,1736873472257,-10000.0,0.0001315,2]
[348923899,1736873472267,-6000.0,0.0001315,2]
[348923900,1736873472276,-2200.0,0.0001315,2]
[348923901,1736873472285,-600.0,0.0001315,2]
[348923902,1736873472295,-1069.16,0.00013177,2]
[348923903,1736873472305,-679.33,0.00013177,2]
[348923904,1736873472315,-500.0,0.00013177,2]
[348923905,1736873472324,-597.12,0.00013177,2]
[348923906,1736873472334,-926.54,0.00013177,2]
[348923907,1736873472343,-500.0,0.00013177,2]
[348923908,1736873472353,-970.9,0.00013177,2]
[348923909,1736873472362,-717.4,0.00013177,2]
[348923910,1736873472372,-1548.22,0.00013177,2]
[348923911,1736873472381,-9130.03,0.00013177,2]
[348923912,1736873472393,-154.63359363,0.00013208,2]
[348923913,1736873472403,-1017.88764744,0.0001321,2]
[348923914,1736873472412,-775.0,0.00013251,2]
[348923915,1736873472422,-554.27,0.00013251,2]
[348923916,1736873472431,-1067.04,0.00013251,2]
[348923917,1736873472441,-2046.78,0.00013251,2]
[348923918,1736873472451,-1253.37,0.00013251,2]
[348923919,1736873472460,-831.64,0.00013251,2]
[348923920,1736873472469,-2049.18,0.00013251,2]
[348923921,1736873472479,-721.04,0.00013251,2]
[348923922,1736873472638,-638.19,0.00013251,2]
[348923923,1736873472649,-551.69,0.00013251,2]
[348923924,1736873472659,-526.93,0.00013251,2]
[348923925,1736873472669,-2294.02,0.00013251,2]
[348923926,1736873472678,-737.34,0.00013251,2]
[348923927,1736873472687,-931.12,0.00013251,2]
[348923928,1736873472697,-500.0,0.00013251,2]
[348923929,1736873472710,-1061.62,0.00013251,2]
[348923930,1736873472720,-682.17,0.00013252,2]
[348923931,1736873472730,-500.0,0.00013252,2]
[348923932,1736873472740,-534.01,0.00013252,2]
[348923933,1736873472749,-500.0,0.00013252,2]
[348923934,1736873472758,-500.0,0.00013252,2]
[348923935,1736873472767,-500.0,0.00013252,2]
[348923936,1736873472778,-500.0,0.00013252,2]
[348923937,1736873472787,-500.0,0.00013252,2]